{"text_format":"3","workbook":"xlsx","n_sheets":3,"sheets":["Zadania","Widok miesiąca","Widok tygodnia"],"not_rendered":{"images":4,"defined_names":16},"read":"whole","date_system":"1900"}

{"sheet":"Zadania","index":0,"n_rows":15,"n_cols":3,"rows_kept":15}
[null,"WIDOK MIESIĄCA","WIDOK TYGODNIA"]
[null," ZADANIA"]
[null,"OPIS","DATA UKOŃCZENIA"]
[null,"Zadanie 1",{"$f":"TODAY()","v":"2016-11-29"}]
[null,"Zadanie 2",{"$f":"TODAY()+15","v":"2016-12-14"}]
[null,"Zadanie 3",{"$f":"TODAY()+30","v":"2016-12-29"}]
[null,"Zadanie 4",{"$f":"TODAY()+45","v":"2017-01-13"}]
[null,"Zadanie 5",{"$f":"TODAY()+60","v":"2017-01-28"}]
[null,"Zadanie 6",{"$f":"TODAY()+75","v":"2017-02-12"}]
[null,"Zadanie 7",{"$f":"TODAY()+90","v":"2017-02-27"}]
[null,"Zadanie 8",{"$f":"TODAY()+105","v":"2017-03-14"}]
[null,"Zadanie 9",{"$f":"TODAY()+115","v":"2017-03-24"}]
[null,"Zadanie 10",{"$f":"TODAY()+130","v":"2017-04-08"}]
[null,"Zadanie 11",{"$f":"TODAY()+145","v":"2017-04-23"}]
[null,"Zadanie 12",{"$f":"TODAY()+160","v":"2017-05-08"}]

{"sheet":"Widok miesiąca","index":1,"n_rows":17,"n_cols":8,"rows_kept":17,"merged":[[3,1,3,7]]}
[null,"ZADANIA","WIDOK TYGODNIA"]
[null,"Wybierz miesiąc:","Wprowadź rok:"]
[null,"Wrzesień",{"$f":"YEAR(TODAY())","v":2016}]
[null," WIDOK MIESIĄCA"]
[null,"PONIEDZIAŁEK","WTOREK","ŚRODA","CZWARTEK","PIĄTEK","SOBOTA","NIEDZIELA"]
[null,{"$f":"IF(WEEKDAY(DATEVALUE(\" 1\"&Mies_miesiąc&Mies_rok)-1)=COLUMN(A$2),1,IF(LEN(A6)>0,A6+1,\"\"))","v":""},"","",1,2,3,4]
[null,{"$f":"IF(LEN(B6)=0,\"\",IF(COUNTIF(Zadania[DATA UKOŃCZENIA],DATE(Mies_rok,Mies_numer_miesiąca,B6))>0,\"Należy oddać zadanie!\",\"\"))","v":""},{"$f":"IF(LEN(C6)=0,\"\",IF(COUNTIF(Zadania[DATA UKOŃCZENIA],DATE(Mies_rok,Mies_numer_miesiąca,C6))>0,\"Należy oddać zadanie!\",\"\"))","v":""},{"$f":"IF(LEN(D6)=0,\"\",IF(COUNTIF(Zadania[DATA UKOŃCZENIA],DATE(Mies_rok,Mies_numer_miesiąca,D6))>0,\"Należy oddać zadanie!\",\"\"))","v":""},{"$f":"IF(LEN(E6)=0,\"\",IF(COUNTIF(Zadania[DATA UKOŃCZENIA],DATE(Mies_rok,Mies_numer_miesiąca,E6))>0,\"Należy oddać zadanie!\",\"\"))","v":""},{"$f":"IF(LEN(F6)=0,\"\",IF(COUNTIF(Zadania[DATA UKOŃCZENIA],DATE(Mies_rok,Mies_numer_miesiąca,F6))>0,\"Należy oddać zadanie!\",\"\"))","v":""},{"$f":"IF(LEN(G6)=0,\"\",IF(COUNTIF(Zadania[DATA UKOŃCZENIA],DATE(Mies_rok,Mies_numer_miesiąca,G6))>0,\"Należy oddać zadanie!\",\"\"))","v":""},{"$f":"IF(LEN(H6)=0,\"\",IF(COUNTIF(Zadania[DATA UKOŃCZENIA],DATE(Mies_rok,Mies_numer_miesiąca,H6))>0,\"Należy oddać zadanie!\",\"\"))","v":""}]
[null,{"$f":"IF(LEN(H6)>0,IF(H6=DAY(DATE(Mies_rok,Mies_numer_miesiąca+1,0)),\"\",H6+1),\"\")","v":5},{"$f":"IF(LEN(B8)>0,IF(B8=DAY(DATE(Mies_rok,Mies_numer_miesiąca+1,0)),\"\",B8+1),\"\")","v":6},7,8,9,10,11]
[null,{"$f":"IF(LEN(B8)=0,\"\",IF(COUNTIF(Zadania[DATA UKOŃCZENIA],DATE(Mies_rok,Mies_numer_miesiąca,B8))>0,\"Należy oddać zadanie!\",\"\"))","v":""},{"$f":"IF(LEN(C8)=0,\"\",IF(COUNTIF(Zadania[DATA UKOŃCZENIA],DATE(Mies_rok,Mies_numer_miesiąca,C8))>0,\"Należy oddać zadanie!\",\"\"))","v":""},{"$f":"IF(LEN(D8)=0,\"\",IF(COUNTIF(Zadania[DATA UKOŃCZENIA],DATE(Mies_rok,Mies_numer_miesiąca,D8))>0,\"Należy oddać zadanie!\",\"\"))","v":""},{"$f":"IF(LEN(E8)=0,\"\",IF(COUNTIF(Zadania[DATA UKOŃCZENIA],DATE(Mies_rok,Mies_numer_miesiąca,E8))>0,\"Należy oddać zadanie!\",\"\"))","v":""},{"$f":"IF(LEN(F8)=0,\"\",IF(COUNTIF(Zadania[DATA UKOŃCZENIA],DATE(Mies_rok,Mies_numer_miesiąca,F8))>0,\"Należy oddać zadanie!\",\"\"))","v":""},{"$f":"IF(LEN(G8)=0,\"\",IF(COUNTIF(Zadania[DATA UKOŃCZENIA],DATE(Mies_rok,Mies_numer_miesiąca,G8))>0,\"Należy oddać zadanie!\",\"\"))","v":""},{"$f":"IF(LEN(H8)=0,\"\",IF(COUNTIF(Zadania[DATA UKOŃCZENIA],DATE(Mies_rok,Mies_numer_miesiąca,H8))>0,\"Należy oddać zadanie!\",\"\"))","v":""}]
[null,{"$f":"IF(LEN(H8)>0,IF(H8=DAY(DATE(Mies_rok,Mies_numer_miesiąca+1,0)),\"\",H8+1),\"\")","v":12},{"$f":"IF(LEN(B10)>0,IF(B10=DAY(DATE(Mies_rok,Mies_numer_miesiąca+1,0)),\"\",B10+1),\"\")","v":13},14,15,16,17,18]
[null,{"$f":"IF(LEN(B10)=0,\"\",IF(COUNTIF(Zadania[DATA UKOŃCZENIA],DATE(Mies_rok,Mies_numer_miesiąca,B10))>0,\"Należy oddać zadanie!\",\"\"))","v":""},{"$f":"IF(LEN(C10)=0,\"\",IF(COUNTIF(Zadania[DATA UKOŃCZENIA],DATE(Mies_rok,Mies_numer_miesiąca,C10))>0,\"Należy oddać zadanie!\",\"\"))","v":""},{"$f":"IF(LEN(D10)=0,\"\",IF(COUNTIF(Zadania[DATA UKOŃCZENIA],DATE(Mies_rok,Mies_numer_miesiąca,D10))>0,\"Należy oddać zadanie!\",\"\"))","v":""},{"$f":"IF(LEN(E10)=0,\"\",IF(COUNTIF(Zadania[DATA UKOŃCZENIA],DATE(Mies_rok,Mies_numer_miesiąca,E10))>0,\"Należy oddać zadanie!\",\"\"))","v":""},{"$f":"IF(LEN(F10)=0,\"\",IF(COUNTIF(Zadania[DATA UKOŃCZENIA],DATE(Mies_rok,Mies_numer_miesiąca,F10))>0,\"Należy oddać zadanie!\",\"\"))","v":""},{"$f":"IF(LEN(G10)=0,\"\",IF(COUNTIF(Zadania[DATA UKOŃCZENIA],DATE(Mies_rok,Mies_numer_miesiąca,G10))>0,\"Należy oddać zadanie!\",\"\"))","v":""},{"$f":"IF(LEN(H10)=0,\"\",IF(COUNTIF(Zadania[DATA UKOŃCZENIA],DATE(Mies_rok,Mies_numer_miesiąca,H10))>0,\"Należy oddać zadanie!\",\"\"))","v":""}]
[null,{"$f":"IF(LEN(H10)>0,IF(H10=DAY(DATE(Mies_rok,Mies_numer_miesiąca+1,0)),\"\",H10+1),\"\")","v":19},{"$f":"IF(LEN(B12)>0,IF(B12=DAY(DATE(Mies_rok,Mies_numer_miesiąca+1,0)),\"\",B12+1),\"\")","v":20},21,22,23,24,25]
[null,{"$f":"IF(LEN(B12)=0,\"\",IF(COUNTIF(Zadania[DATA UKOŃCZENIA],DATE(Mies_rok,Mies_numer_miesiąca,B12))>0,\"Należy oddać zadanie!\",\"\"))","v":""},{"$f":"IF(LEN(C12)=0,\"\",IF(COUNTIF(Zadania[DATA UKOŃCZENIA],DATE(Mies_rok,Mies_numer_miesiąca,C12))>0,\"Należy oddać zadanie!\",\"\"))","v":""},{"$f":"IF(LEN(D12)=0,\"\",IF(COUNTIF(Zadania[DATA UKOŃCZENIA],DATE(Mies_rok,Mies_numer_miesiąca,D12))>0,\"Należy oddać zadanie!\",\"\"))","v":""},{"$f":"IF(LEN(E12)=0,\"\",IF(COUNTIF(Zadania[DATA UKOŃCZENIA],DATE(Mies_rok,Mies_numer_miesiąca,E12))>0,\"Należy oddać zadanie!\",\"\"))","v":""},{"$f":"IF(LEN(F12)=0,\"\",IF(COUNTIF(Zadania[DATA UKOŃCZENIA],DATE(Mies_rok,Mies_numer_miesiąca,F12))>0,\"Należy oddać zadanie!\",\"\"))","v":""},{"$f":"IF(LEN(G12)=0,\"\",IF(COUNTIF(Zadania[DATA UKOŃCZENIA],DATE(Mies_rok,Mies_numer_miesiąca,G12))>0,\"Należy oddać zadanie!\",\"\"))","v":""},{"$f":"IF(LEN(H12)=0,\"\",IF(COUNTIF(Zadania[DATA UKOŃCZENIA],DATE(Mies_rok,Mies_numer_miesiąca,H12))>0,\"Należy oddać zadanie!\",\"\"))","v":""}]
[null,{"$f":"IF(LEN(H12)>0,IF(H12=DAY(DATE(Mies_rok,Mies_numer_miesiąca+1,0)),\"\",H12+1),\"\")","v":26},{"$f":"IF(LEN(B14)>0,IF(B14=DAY(DATE(Mies_rok,Mies_numer_miesiąca+1,0)),\"\",B14+1),\"\")","v":27},28,29,30,"",""]
[null,{"$f":"IF(LEN(B14)=0,\"\",IF(COUNTIF(Zadania[DATA UKOŃCZENIA],DATE(Mies_rok,Mies_numer_miesiąca,B14))>0,\"Należy oddać zadanie!\",\"\"))","v":""},{"$f":"IF(LEN(C14)=0,\"\",IF(COUNTIF(Zadania[DATA UKOŃCZENIA],DATE(Mies_rok,Mies_numer_miesiąca,C14))>0,\"Należy oddać zadanie!\",\"\"))","v":""},{"$f":"IF(LEN(D14)=0,\"\",IF(COUNTIF(Zadania[DATA UKOŃCZENIA],DATE(Mies_rok,Mies_numer_miesiąca,D14))>0,\"Należy oddać zadanie!\",\"\"))","v":""},{"$f":"IF(LEN(E14)=0,\"\",IF(COUNTIF(Zadania[DATA UKOŃCZENIA],DATE(Mies_rok,Mies_numer_miesiąca,E14))>0,\"Należy oddać zadanie!\",\"\"))","v":""},{"$f":"IF(LEN(F14)=0,\"\",IF(COUNTIF(Zadania[DATA UKOŃCZENIA],DATE(Mies_rok,Mies_numer_miesiąca,F14))>0,\"Należy oddać zadanie!\",\"\"))","v":""},{"$f":"IF(LEN(G14)=0,\"\",IF(COUNTIF(Zadania[DATA UKOŃCZENIA],DATE(Mies_rok,Mies_numer_miesiąca,G14))>0,\"Należy oddać zadanie!\",\"\"))","v":""},{"$f":"IF(LEN(H14)=0,\"\",IF(COUNTIF(Zadania[DATA UKOŃCZENIA],DATE(Mies_rok,Mies_numer_miesiąca,H14))>0,\"Należy oddać zadanie!\",\"\"))","v":""}]
[null,{"$f":"IF(LEN(H14)>0,IF(H14=DAY(DATE(Mies_rok,Mies_numer_miesiąca+1,0)),\"\",H14+1),\"\")","v":""},{"$f":"IF(LEN(B16)>0,IF(B16=DAY(DATE(Mies_rok,Mies_numer_miesiąca+1,0)),\"\",B16+1),\"\")","v":""},"","","","",""]
[null,{"$f":"IF(LEN(B16)=0,\"\",IF(COUNTIF(Zadania[DATA UKOŃCZENIA],DATE(Mies_rok,Mies_numer_miesiąca,B16))>0,\"Należy oddać zadanie!\",\"\"))","v":""},{"$f":"IF(LEN(C16)=0,\"\",IF(COUNTIF(Zadania[DATA UKOŃCZENIA],DATE(Mies_rok,Mies_numer_miesiąca,C16))>0,\"Należy oddać zadanie!\",\"\"))","v":""},{"$f":"IF(LEN(D16)=0,\"\",IF(COUNTIF(Zadania[DATA UKOŃCZENIA],DATE(Mies_rok,Mies_numer_miesiąca,D16))>0,\"Należy oddać zadanie!\",\"\"))","v":""},{"$f":"IF(LEN(E16)=0,\"\",IF(COUNTIF(Zadania[DATA UKOŃCZENIA],DATE(Mies_rok,Mies_numer_miesiąca,E16))>0,\"Należy oddać zadanie!\",\"\"))","v":""},{"$f":"IF(LEN(F16)=0,\"\",IF(COUNTIF(Zadania[DATA UKOŃCZENIA],DATE(Mies_rok,Mies_numer_miesiąca,F16))>0,\"Należy oddać zadanie!\",\"\"))","v":""},{"$f":"IF(LEN(G16)=0,\"\",IF(COUNTIF(Zadania[DATA UKOŃCZENIA],DATE(Mies_rok,Mies_numer_miesiąca,G16))>0,\"Należy oddać zadanie!\",\"\"))","v":""},{"$f":"IF(LEN(H16)=0,\"\",IF(COUNTIF(Zadania[DATA UKOŃCZENIA],DATE(Mies_rok,Mies_numer_miesiąca,H16))>0,\"Należy oddać zadanie!\",\"\"))","v":""}]

{"sheet":"Widok tygodnia","index":2,"n_rows":17,"n_cols":8,"rows_kept":17,"merged":[[3,1,3,7]]}
[null,"ZADANIA","WIDOK MIESIĄCA"]
[null,"Wybierz miesiąc:","Wprowadź rok:","Wybierz nr tygodnia:"]
[null,"Wrzesień",{"$f":"YEAR(TODAY())","v":2016},"Tydzień 1"]
[null," WIDOK TYGODNIA"]
[null,{"$f":"IF(WEEKDAY(DATEVALUE(\" 1 \"&Tyg_miesiąc&Tyg_rok)-1)=COLUMN(A$2),1,IF(LEN(A5)>0,A5+1,\"\"))","v":""},"","",1,2,3,4]
[null,{"$f":"IF(LEN(H5)>0,IF(H5=Ostatni_dzień_miesiąca_tydzień,\"\",H5+1),\"\")","v":5},{"$f":"IF(LEN(B6)>0,IF(B6=Ostatni_dzień_miesiąca_tydzień,\"\",B6+1),\"\")","v":6},7,8,9,10,11]
[null,{"$f":"IF(LEN(H6)>0,IF(H6=Ostatni_dzień_miesiąca_tydzień,\"\",H6+1),\"\")","v":12},13,14,15,16,17,18]
[null,{"$f":"IF(LEN(H7)>0,IF(H7=Ostatni_dzień_miesiąca_tydzień,\"\",H7+1),\"\")","v":19},20,21,22,23,24,25]
[null,{"$f":"IF(LEN(H8)>0,IF(H8=Ostatni_dzień_miesiąca_tydzień,\"\",H8+1),\"\")","v":26},27,28,29,30,"",""]
[null,{"$f":"IF(LEN(H9)>0,IF(H9=Ostatni_dzień_miesiąca_tydzień,\"\",H9+1),\"\")","v":""},"","","","","",""]
[null,"PONIEDZIAŁEK","WTOREK","ŚRODA","CZWARTEK","PIĄTEK","SOBOTA","NIEDZIELA"]
[null,{"$f":"IF(B14=\"\",IF(AND(ISNUMBER(A12),A12<Ostatni_dzień_miesiąca_tydzień),A12+1,\"\"),IF(B14<=7,\"\",INDEX(Tyg_widok_miesiąca,Tyg_tydzień,COLUMN(A$2))-7))","v":""},"","","","","",""]
[null,{"$f":"IF(LEN(B12)=0,\"\",IF(COUNTIF(Zadania[DATA UKOŃCZENIA],DATE(Tyg_miesiąc,Tyg_numer_miesiąca,B12))>0,\"Należy oddać zadanie!\",\"\"))","v":""},{"$f":"IF(LEN(C12)=0,\"\",IF(COUNTIF(Zadania[DATA UKOŃCZENIA],DATE(Tyg_miesiąc,Tyg_numer_miesiąca,C12))>0,\"Należy oddać zadanie!\",\"\"))","v":""},{"$f":"IF(LEN(D12)=0,\"\",IF(COUNTIF(Zadania[DATA UKOŃCZENIA],DATE(Tyg_miesiąc,Tyg_numer_miesiąca,D12))>0,\"Należy oddać zadanie!\",\"\"))","v":""},{"$f":"IF(LEN(E12)=0,\"\",IF(COUNTIF(Zadania[DATA UKOŃCZENIA],DATE(Tyg_miesiąc,Tyg_numer_miesiąca,E12))>0,\"Należy oddać zadanie!\",\"\"))","v":""},{"$f":"IF(LEN(F12)=0,\"\",IF(COUNTIF(Zadania[DATA UKOŃCZENIA],DATE(Tyg_miesiąc,Tyg_numer_miesiąca,F12))>0,\"Należy oddać zadanie!\",\"\"))","v":""},{"$f":"IF(LEN(G12)=0,\"\",IF(COUNTIF(Zadania[DATA UKOŃCZENIA],DATE(Tyg_miesiąc,Tyg_numer_miesiąca,G12))>0,\"Należy oddać zadanie!\",\"\"))","v":""},{"$f":"IF(LEN(H12)=0,\"\",IF(COUNTIF(Zadania[DATA UKOŃCZENIA],DATE(Tyg_miesiąc,Tyg_numer_miesiąca,H12))>0,\"Należy oddać zadanie!\",\"\"))","v":""}]
[null,{"$f":"INDEX(Tyg_widok_miesiąca,Tyg_tydzień,COLUMN(A$2))","v":""},"","",1,2,3,4]
[null,{"$f":"IF(LEN(B14)=0,\"\",IF(COUNTIF(Zadania[DATA UKOŃCZENIA],DATE(Tyg_miesiąc,Tyg_numer_miesiąca,B14))>0,\"Należy oddać zadanie!\",\"\"))","v":""},{"$f":"IF(LEN(C14)=0,\"\",IF(COUNTIF(Zadania[DATA UKOŃCZENIA],DATE(Tyg_miesiąc,Tyg_numer_miesiąca,C14))>0,\"Należy oddać zadanie!\",\"\"))","v":""},{"$f":"IF(LEN(D14)=0,\"\",IF(COUNTIF(Zadania[DATA UKOŃCZENIA],DATE(Tyg_miesiąc,Tyg_numer_miesiąca,D14))>0,\"Należy oddać zadanie!\",\"\"))","v":""},{"$f":"IF(LEN(E14)=0,\"\",IF(COUNTIF(Zadania[DATA UKOŃCZENIA],DATE(Tyg_miesiąc,Tyg_numer_miesiąca,E14))>0,\"Należy oddać zadanie!\",\"\"))","v":""},{"$f":"IF(LEN(F14)=0,\"\",IF(COUNTIF(Zadania[DATA UKOŃCZENIA],DATE(Tyg_miesiąc,Tyg_numer_miesiąca,F14))>0,\"Należy oddać zadanie!\",\"\"))","v":""},{"$f":"IF(LEN(G14)=0,\"\",IF(COUNTIF(Zadania[DATA UKOŃCZENIA],DATE(Tyg_miesiąc,Tyg_numer_miesiąca,G14))>0,\"Należy oddać zadanie!\",\"\"))","v":""},{"$f":"IF(LEN(H14)=0,\"\",IF(COUNTIF(Zadania[DATA UKOŃCZENIA],DATE(Tyg_miesiąc,Tyg_numer_miesiąca,H14))>0,\"Należy oddać zadanie!\",\"\"))","v":""}]
[null,{"$f":"IFERROR(IF(B14=\"\",IF(AND(ISNUMBER(A16),A16<Ostatni_dzień_miesiąca_tydzień),A16+1,$H$14+COLUMN(A$2)),IF(B14+7>Ostatni_dzień_miesiąca_tydzień,\"\",INDEX(Tyg_widok_miesiąca,Tyg_tydzień,COLUMN(A$2))+7)),\"\")","v":5},{"$f":"IFERROR(IF(C14=\"\",IF(AND(ISNUMBER(B16),B16<Ostatni_dzień_miesiąca_tydzień),B16+1,$H$14+COLUMN(B$2)),IF(C14+7>Ostatni_dzień_miesiąca_tydzień,\"\",INDEX(Tyg_widok_miesiąca,Tyg_tydzień,COLUMN(B$2))+7)),\"\")","v":6},{"$f":"IFERROR(IF(D14=\"\",IF(AND(ISNUMBER(C16),C16<Ostatni_dzień_miesiąca_tydzień),C16+1,$H$14+COLUMN(C$2)),IF(D14+7>Ostatni_dzień_miesiąca_tydzień,\"\",INDEX(Tyg_widok_miesiąca,Tyg_tydzień,COLUMN(C$2))+7)),\"\")","v":7},{"$f":"IFERROR(IF(E14=\"\",IF(AND(ISNUMBER(D16),D16<Ostatni_dzień_miesiąca_tydzień),D16+1,$H$14+COLUMN(D$2)),IF(E14+7>Ostatni_dzień_miesiąca_tydzień,\"\",INDEX(Tyg_widok_miesiąca,Tyg_tydzień,COLUMN(D$2))+7)),\"\")","v":8},{"$f":"IFERROR(IF(F14=\"\",IF(AND(ISNUMBER(E16),E16<Ostatni_dzień_miesiąca_tydzień),E16+1,$H$14+COLUMN(E$2)),IF(F14+7>Ostatni_dzień_miesiąca_tydzień,\"\",INDEX(Tyg_widok_miesiąca,Tyg_tydzień,COLUMN(E$2))+7)),\"\")","v":9},{"$f":"IFERROR(IF(G14=\"\",IF(AND(ISNUMBER(F16),F16<Ostatni_dzień_miesiąca_tydzień),F16+1,$H$14+COLUMN(F$2)),IF(G14+7>Ostatni_dzień_miesiąca_tydzień,\"\",INDEX(Tyg_widok_miesiąca,Tyg_tydzień,COLUMN(F$2))+7)),\"\")","v":10},{"$f":"IFERROR(IF(H14=\"\",IF(AND(ISNUMBER(G16),G16<Ostatni_dzień_miesiąca_tydzień),G16+1,$H$14+COLUMN(G$2)),IF(H14+7>Ostatni_dzień_miesiąca_tydzień,\"\",INDEX(Tyg_widok_miesiąca,Tyg_tydzień,COLUMN(G$2))+7)),\"\")","v":11}]
[null,{"$f":"IF(LEN(B16)=0,\"\",IF(COUNTIF(Zadania[DATA UKOŃCZENIA],DATE(Tyg_miesiąc,Tyg_numer_miesiąca,B16))>0,\"Należy oddać zadanie!\",\"\"))","v":""},{"$f":"IF(LEN(C16)=0,\"\",IF(COUNTIF(Zadania[DATA UKOŃCZENIA],DATE(Tyg_miesiąc,Tyg_numer_miesiąca,C16))>0,\"Należy oddać zadanie!\",\"\"))","v":""},{"$f":"IF(LEN(D16)=0,\"\",IF(COUNTIF(Zadania[DATA UKOŃCZENIA],DATE(Tyg_miesiąc,Tyg_numer_miesiąca,D16))>0,\"Należy oddać zadanie!\",\"\"))","v":""},{"$f":"IF(LEN(E16)=0,\"\",IF(COUNTIF(Zadania[DATA UKOŃCZENIA],DATE(Tyg_miesiąc,Tyg_numer_miesiąca,E16))>0,\"Należy oddać zadanie!\",\"\"))","v":""},{"$f":"IF(LEN(F16)=0,\"\",IF(COUNTIF(Zadania[DATA UKOŃCZENIA],DATE(Tyg_miesiąc,Tyg_numer_miesiąca,F16))>0,\"Należy oddać zadanie!\",\"\"))","v":""},{"$f":"IF(LEN(G16)=0,\"\",IF(COUNTIF(Zadania[DATA UKOŃCZENIA],DATE(Tyg_miesiąc,Tyg_numer_miesiąca,G16))>0,\"Należy oddać zadanie!\",\"\"))","v":""},{"$f":"IF(LEN(H16)=0,\"\",IF(COUNTIF(Zadania[DATA UKOŃCZENIA],DATE(Tyg_miesiąc,Tyg_numer_miesiąca,H16))>0,\"Należy oddać zadanie!\",\"\"))","v":""}]